{"text_format":"1","workbook":"xlsx","n_sheets":9,"sheets":["Титульний","Таблиця 1","Таб 1","Таб 1.1","Таб 2-3","Таб 4-6","Таб 7-10","Додаток","Dov"],"not_rendered":{"charts":0,"images":0,"macros":1,"external_links":6,"defined_names":46,"comments":0,"pivot_tables":0},"unopened":[{"sheet":"Dov","index":8,"reason":"not_a_worksheet"}],"bounds":{"document_bytes":16777216,"sheet_cells":100000,"rows_first":2000,"rows_last":500,"rows_between":2000,"halvings":0,"cell_chars":16384,"cell_head_chars":4096},"cells_cut":0,"cells_raw":0,"read":"whole","date_system":"1900"}

{"sheet":"Титульний","index":0,"n_rows":23,"n_cols":6,"rows_kept":23,"cut":false,"hidden":false,"merged":[[11,0,11,3],[8,5,8,6],[22,0,22,6],[11,5,16,6],[15,0,15,3],[16,0,16,3],[12,0,12,3],[13,0,13,3],[10,5,10,6],[10,0,10,3],[14,0,14,3],[6,0,6,6],[8,0,8,3],[9,0,9,3],[9,5,9,6],[1,0,1,6],[3,0,3,6],[4,0,4,6]]}
[]
["ЗВІТНІСТЬ"]
[]
["ПРО РОБОТУ"]
["ОРГАНІВ ДОСУДОВОГО РОЗСЛІДУВАННЯ"]
[]
["за 3 місяці 2017 року"]
[]
["Подають: ",null,null,null,"Терміни\nподання","Форма №1 СЛ"]
["Слідчі підрозділи прокуратур Автономної Республіки Крим, областей, міст Києва і Севастополя – прокурору Автономної Республіки Крим, області, міст Києва і Севастополя ",null,null,null,"до 2 числа за звітним періодом","квартальна"]
["Військові прокурори гарнізонів (на правах міських) – військовому прокурору регіону",null,null,null,"до 2 числа за звітним періодом","ЗАТВЕРДЖЕНО"]
["Слідче управління Головної військової прокуратури – відповідному заступнику Генерального прокурора України",null,null,null,"до 2 числа за звітним періодом","спільний наказ ГП, МВС, СБ, ДПС України\nвід 15 листопада 2012 року № 110/1031/1037/514\nзі змінами (у редакції спільного наказу Генеральної прокуратури України, Міністерства внутрішніх справ України, Служби безпеки України та Державної фіскальної служби України\nвід 12 березня № 23/194/233/157)\n\nза погодженням з Держстатом "]
["Прокурори Автономної Республіки Крим, областей, міст Києва і Севастополя – Генеральній прокуратурі України",null,null,null,"до 3 числа за звітним періодом"]
["Військові прокурори регіонів – Головній військовій прокуратурі Генеральної прокуратури України",null,null,null,"до 3 числа за звітним періодом"]
["Структурні підрозділи Генеральної прокуратури України, які здійснюють досудове розслідування – відділу статистичної інформації та аналізу управління організації ведення Єдиного реєстру досудових розслідувань та статистичної інформації Генеральної прокуратури України",null,null,null,"до 2 числа за звітним періодом"]
["Головна військова прокуратура Генеральної прокуратури України – відділу статистичної інформації та аналізу управління організації ведення Єдиного реєстру досудових розслідувань та статистичної інформації Генеральної прокуратури України",null,null,null,"до 4 числа за звітним періодом"]
["Генеральна прокуратура України – Держстату  (півріччя, рік)",null,null,null,"на 35 день за звітним періодом (півріччя, рік)"]
[]
["Респондент: "]
["Найменування:","Прокуратура Чернігівської області"]
["Місцезнаходження:","14000 Чернігів, вул.Князя Чорного,9"]
[]
["(поштовий індекс, область, район, населений пункт, вулиця/провулок, площа тошо, № будинку)"]

{"sheet":"Таблиця 1","index":1,"n_rows":41,"n_cols":24,"rows_kept":41,"cut":false,"hidden":false,"merged":[[18,1,21,1],[22,1,22,2],[23,1,26,1],[5,0,5,2],[27,0,27,2],[1,0,1,9],[7,1,10,1],[11,1,11,2],[6,0,15,0],[6,1,6,2],[12,1,15,1],[2,0,3,2],[40,1,40,2],[36,1,36,2],[37,1,37,2],[38,1,38,2],[39,1,39,2],[30,1,30,2],[35,1,35,2],[31,1,31,2],[2,8,2,9],[2,6,2,7],[4,0,4,2],[2,3,3,3],[2,4,2,5],[33,1,33,2],[28,0,40,0],[34,1,34,2],[28,1,28,2],[16,0,16,2],[32,1,32,2],[17,1,17,2],[17,0,26,0]]}
[null,null,null,null,null,null,2017,"року"]
["Таблиця 1. Кримінальні провадження, у яких закінчено досудове розслідування (без повторних)",null,null,null,null,null,null,null,null,null,null,null,null,null,null,null,null,null,null,1]
[null,null,null,"рядок","Направлено до суду кримінальних проваджень з обвинувальним актом",null,"Направлено клопотань до суду для звільнення від кримінальної відповідальності ",null,"Закрито кримінальних проваджень"]
[null,null,null,null,"усього","стосовно якої кількості осіб","усього","стосовно якої кількості осіб","усього","у т.ч. за  п.п. 1-3 ч. 1 ст.284 КПК"]
["а",null,null,"б",1,2,3,4,5,6,null,null,null,null,null,null,null,null,null,null,null,null,null,1]
["Кримінальні правопорушення, вчинені службовими особами, які займають особливо відповідальне становище відповідно до ч.1 ст. 9 Закону України «Про державну службу» та посади яких відповідно до цього Закону віднесено до 1-2 категорії (крім працівників правоохоронних органів)",null,null,1]
["з них:","У сфері службової діяльності",null,2]
[null,"у т.ч.:","ловживання владою або службовим становищем (ст. 364)",3]
[null,null,"службова недбалість (ст. 367)",4]
[null,null,"злочини щодо хабарництва (ст.ст. 368-370)",5]
[null,null,"нші кримінальні правопорушення, вчинені у сфері службової діяльності",6]
[null,"Кримінальні правопорушення, не пов’язані із службовою діяльністю",null,7]
[null,"у т.ч.:","злочини проти життя та здоров’я особи\n(розділ ІІ КК України)",8]
[null,null,"злочини проти волі, честі та гідності особи\n(розділ ІІІ КК України)",9]
[null,null,"злочини проти безпеки руху та експлуатації транспорту (ст.ст. 276-292)",10]
[null,null,"інші кримінальні правопорушення, не пов’язані із службовою діяльністю",11]
["Кримінальні правопорушення, вчинені особами посади яких згідно зі ст. 25 Закону України «Про державну службу» віднесено до 3 категорії посад (крім працівників правоохоронних органів та суддів)",null,null,12]
["з них:"," У сфері службової діяльності",null,13]
[null,"у т.ч.:","зловживання владою або службовим становищем (ст. 364)",14]
[null,null,"службова недбалість (ст. 367)",15]
[null,null,"злочини щодо хабарництва (ст. ст. 368-370)",16]
[null,null,"інші кримінальні правопорушення, вчинені у сфері службової діяльності",17]
[null,"Кримінальні правопорушення, не пов’язані із службовою діяльністю",null,18]
[null,"у т.ч.:","злочини проти життя та здоров’я особи\n(розділ ІІ КК України)",19]
[null,null,"злочини проти волі, честі та гідності особи\n(розділ ІІІ КК України)",20]
[null,null,"злочини проти безпеки руху та експлуатації транспорту (ст.ст. 276-292)",21]
[null,null,"інші кримінальні правопорушення, не пов’язані із службовою діяльністю",22]
["Кримінальні правопорушення, вчинені працівниками правоохоронних органів",null,null,23,5,6,null,null,52,52]
["з них:","органів внутрішніх справ",null,24,2,3,null,null,37,37]
[null,"у т.ч.:","Національної  гвардії",25]
[null,"органів прокуратури",null,26,null,null,null,null,5,5]
[null,"Служби безпеки України",null,27]
[null,"Державної податкової служби",null,28,null,null,null,null,2,2]
[null,"митної служби",null,29,null,null,null,null,4,4]
[null,"працівниками пенітенціарної системи",null,30,2,2,null,null,3,3]
[null,"працівниками органів Держфінінспекції",null,31]
[null,"працівниками Держрибохорони",null,32]
[null,"працівниками державної лісової охорони",null,33,null,null,null,null,1,1]
[null,"співробітниками Військової служби правопорядку у ЗСУ",null,34]
[null,"прикордонниками",null,35]
[null,"працівниками інших органів, що здійснюють правозастосовні або правоохоронні функції",null,36,1,1]

{"sheet":"Таб 1","index":2,"n_rows":30,"n_cols":10,"rows_kept":30,"cut":false,"hidden":false,"merged":[[29,0,29,2],[0,0,0,2],[12,0,12,2],[24,0,27,0],[27,1,27,2],[13,1,13,2],[18,1,21,1],[2,1,6,1],[1,0,11,0],[1,1,1,2],[17,1,17,2],[8,1,11,1],[7,1,7,2],[13,0,21,0],[14,1,16,1],[28,0,28,2],[26,1,26,2],[23,0,23,2],[22,0,22,2],[24,1,24,2],[25,1,25,2]]}
["а",null,null,"б",1,2,3,4,5,6]
["з них:","У сфері службової діяльності ",null,37,3,4,null,null,42,42]
[null,"у т.ч.:","зловживання владою або службовим становищем (ст. 364)",38,null,null,null,null,5,5]
[null,null,"перевищення влади або службових повноважень (ст. 365)",39,null,null,null,null,15,15]
[null,null,"службова недбалість (ст. 367)",40,null,null,null,null,7,7]
[null,null,"злочини щодо хабарництва (ст.ст. 368-370)",41,2,3,null,null,5,5]
[null,null,"інші кримінальні правопорушення, вчинені у сфері службової діяльності",42,1,1,null,null,10,10]
[null,"Кримінальні правопорушення, не пов’язані із службовою діяльністю",null,43,2,2,null,null,10,10]
[null,"у т.ч.:","злочини проти життя та здоров’я особи (розділ ІІ КК України)",44,null,null,null,null,3,3]
[null,null,"злочини проти волі, честі та гідності особи (розділ ІІІ КК України)",45]
[null,null,"злочини проти безпеки руху та експлуатації транспорту (ст.ст. 276-292)",46,1,1,null,null,1,1]
[null,null,"інші кримінальні правопорушення, не пов’язані із службовою діяльністю",47,1,1,null,null,6,6]
["Кримінальні правопорушення, вчинені суддями",null,null,48]
["з них:","У сфері здійснення правосуддя",null,49]
[null,"у т.ч.:","постановлення завідомо неправосудного вироку, рішення або ухвали (ст.375)",50]
[null,null,"злочини щодо хабарництва (ст.ст. 368-370)",51]
[null,null,"інші кримінальні правопорушення, вчинені у сфері службової діяльності щодо здійснення правосуддя",52]
[null,"Не пов’язані із службовою діяльністю щодо здійснення правосуддя",null,53]
[null,"у т.ч.:","злочини проти життя та здоров’я особи (розділ ІІ КК України)",54]
[null,null,"злочини проти волі, честі та гідності особи (розділ ІІІ КК України)",55]
[null,null,"злочини проти безпеки руху та експлуатації транспорту (ст.ст. 276-292)",56]
[null,null,"інші кримінальні правопорушення, не пов’язані із службовою діяльністю",57]
["Інші кримінальні правопорушення",null,null,58,1,2,null,null,4,4]
["УСЬОГО",null,null,59,6,8,null,null,56,56]
["з них:","провадження про правопорушення, вчинені ОГ та ЗО",null,60,null,null,"x","x",null,"x"]
[null,"провадження про корупційні правопорушення",null,61,4,6,null,null,null,"x"]
[null,"провадження про правопорушення, вчинені у сфері земельних правовідносин",null,62,1,2]
[null,"провадження  про правопорушення, вчинені у бюджетній системі",null,63,1,1]
["Клопотання про застосування примусових заходів медичного характеру (не входить у рядок 59)",null,null,64,null,null,"x","x","x","x"]
["Контрольний рядок",null,null,65,{"$f":"SUM('Таблиця 1'!E6:E41)+SUM('Таб 1'!E2:E29)","v":33},{"$f":"SUM('Таблиця 1'!F6:F41)+SUM('Таб 1'!F2:F29)","v":43},{"$f":"SUM('Таблиця 1'!G6:G41)+SUM('Таб 1'!G2:G24)+G26+G27+G28","v":0},{"$f":"SUM('Таблиця 1'!H6:H41)+SUM('Таб 1'!H2:H24)+H26+H27+H28","v":0},{"$f":"SUM('Таблиця 1'!I6:I41)+SUM('Таб 1'!I2:I28)","v":268},{"$f":"SUM('Таблиця 1'!J6:J41)+SUM('Таб 1'!J2:J24)+J27+J28","v":268}]

{"sheet":"Таб 1.1","index":3,"n_rows":33,"n_cols":12,"rows_kept":33,"cut":false,"hidden":false,"merged":[[29,0,29,2],[30,0,30,2],[31,0,31,2],[32,0,32,2],[23,0,23,2],[24,0,28,0],[24,1,24,2],[26,1,26,2],[27,1,27,2],[28,1,28,2],[17,0,17,2],[18,0,22,0],[18,1,18,2],[20,1,20,2],[21,1,21,2],[22,1,22,2],[12,0,16,0],[12,1,12,2],[14,1,14,2],[15,1,15,2],[16,1,16,2],[0,0,0,11],[1,0,1,11],[2,0,3,2],[2,3,3,3],[2,4,3,4],[2,5,2,10],[11,0,11,2],[4,0,4,2],[5,0,5,2],[6,0,10,0],[6,1,6,2],[8,1,8,2],[9,1,9,2],[10,1,10,2]]}
["Додаток 1\nдо звітності за формою № 1-СЛ \"Про роботу органів досудового розслідування\",\n"]
["Таблиця 1.1. Кримінальні провадження про злочини, вчинені працівниками правоохоронних органів щодо застосування катувань та іншого жорстокого поводження (без повторних)"]
[null,null,null,"рядок","Про катування та інше жорстоке поводження з особами","з них:",null,null,null,null,null,"у т.ч."]
[null,null,null,null,null,"ст. 127 КК України","ст. 364 КК України","ст. 365 КК України","ст. 367 КК України","ст. 373 КК України","за іншими статтями","зі смертельними наслідками"]
["a",null,null,"б",1,2,3,4,5,6,7,8]
["Розслідувалось кримінальних проваджень",null,null,1]
["у т.ч. стосовно працівників:","МВС",null,2]
[null,"з них:","Національної гвардії",3]
[null,"ДФС",null,4]
[null,"СБУ",null,5]
[null,"ДПтС",null,6]
["З них: розпочатих у поточному році",null,null,7]
["у т.ч. стосовно працівників:","МВС",null,8]
[null,"з них:","Національної гвардії",9]
[null,"ДФС",null,10]
[null,"СБУ",null,11]
[null,"ДПтС",null,12]
["Направлено до суду кримінальних проваджень з обвинувальним актом",null,null,13]
["у т.ч. стосовно працівників:","МВС",null,14]
[null,"з них:","Національної гвардії",15]
[null,"ДФС",null,16]
[null,"СБУ",null,17]
[null,"ДПтС",null,18]
["Кількість осіб, стосовно яких кримінальні провадження направлені до суду з обвинувальним актом",null,null,19]
["у т.ч. стосовно працівників:","МВС",null,20]
[null,"з них:","Національної гвардії",21]
[null,"ДФС",null,22]
[null,"СБУ",null,23]
[null,"ДПтС",null,24]
["Направлено до суду клопотань для звільнення підозрюваного від кримінальної відповідальності",null,null,25]
["Закрито кримінальних проваджень",null,null,26]
["Направлено за підслідністю",null,null,27]
["Контрольний рядок",null,null,28,{"$f":"SUM(E6:E32)","v":0},{"$f":"SUM(F6:F32)","v":0},0,0,0,0,0,0]

{"sheet":"Таб 2-3","index":4,"n_rows":41,"n_cols":7,"rows_kept":41,"cut":false,"hidden":false,"merged":[[1,0,1,4],[9,0,16,0],[16,2,16,4],[7,0,7,4],[14,2,14,4],[11,3,11,4],[8,1,8,4],[11,2,12,2],[2,0,2,4],[3,0,3,4],[4,0,4,4],[5,1,5,4],[15,1,15,4],[10,1,14,1],[9,1,9,4],[6,1,6,4],[36,1,36,4],[19,0,19,4],[20,0,22,0],[22,1,22,4],[20,1,20,4],[21,1,21,4],[30,0,30,4],[31,0,31,4],[35,0,35,4],[34,0,34,4],[33,0,33,4],[28,0,29,1],[29,2,29,4],[28,2,28,4],[37,0,39,1],[40,0,40,4],[39,2,39,4],[38,2,38,4],[37,2,37,4],[5,0,6,0],[10,2,10,4],[13,2,13,4],[12,3,12,4],[27,0,27,4],[25,0,26,3],[17,0,17,4],[18,0,18,4],[23,0,23,4],[24,1,24,4]]}
["Таблиця 2. Результати розслідування кримінальних правопорушень "]
[null,null,null,null,null,"рядок"]
["а",null,null,null,null,"б",1]
["Залишок незакінчених кримінальних проваджень на початок звітного періоду",null,null,null,null,1,89]
["Розпочато проваджень у звітному періоді, у т.ч. по виділених в окреме провадження згідно із ст. 217 КПК",null,null,null,null,2,102]
["з них:","відновлено розслідування у раніше зупинених кримінальних провадженнях",null,null,null,3,2]
[null,"відновлено розслідування у раніше закритих кримінальних провадженнях",null,null,null,4,22]
["Усього закінчено кримінальних проваджень у звітному періоді",null,null,null,null,5,79]
["у т.ч.:","розслідування у яких розпочато у звітному періоді",null,null,null,6,18]
["з них(з рядка 5)","закінчено кримінальних проваджень у строки понад 2 місяці",null,null,null,7,2]
[null,"Направлено до суду","проваджень з обвинувальним актом",null,null,8,6]
[null,null,"у т.ч.:","з угодою про примирення",null,9]
[null,null,null,"з угодою про визнання винуватості",null,10]
[null,null,"клопотань про застосування примусових заходів медичного характеру",null,null,11]
[null,null,"клопотань про звільнення підозрюваного від кримінальної відповідальності",null,null,12]
[null,"закрито кримінальних проваджень із числа закінчених",null,null,null,13,73]
[null,"з них:","закрито прокурором",null,null,14]
["Направлено кримінальних проваджень за підслідністю",null,null,null,null,15,4]
["Приєднано кримінальних проваджень до інших проваджень",null,null,null,null,16,20]
["Зупинено кримінальних проваджень ",null,null,null,null,17,2]
["з них:","за п.1 ст. 280 КПК України у зв’язку з хворобою підозрюваного",null,null,null,18,1]
[null,"за п.2 ст. 280 КПК України у зв’язку з невстановленням місцезнаходження підозрюваного",null,null,null,19,1]
[null,"за п.3 ст. 280 КПК України для виконання процесуальних дій у межах міжнародного співробітництва",null,null,null,20]
["Залишок незакінчених кримінальних проваджень ",null,null,null,null,21,86]
["з них:","з повідомленням особи про підозру у вчиненні кримінального правопорушення",null,null,null,22,1]
["Із залишку незакінчених кримінальних проваджень, за якими особу повідомлено про підозру у вчиненні кримінального правопорушення, зі строком розслідування (ряд.22)",null,null,null,"понад 2 місяці, але не більше 6 місяців",23]
[null,null,null,null,"понад 6 місяців, але не більше 1 року",24]
["Число осіб, які тримаються під вартою за незакінченими кримінальними провадженнями",null,null,null,null,25]
["у т.ч. зі строком:",null,"понад шістдесят днів, але не більше 6 місяців",null,null,26]
[null,null,"понад  6 місяців, але не більше 1 року ",null,null,27]
["Число слідчих (станом на 01.01)",null,null,null,null,28,10]
["Контрольний рядок",null,null,null,null,29,{"$f":"SUM(G4:G31)","v":518}]
["Таблиця 3. Строки досудового розслідування"]
[null,null,null,null,null,"рядок","Закінчено кримінальних проваджень (без повторно закінчених)"]
["а",null,null,null,null,"б",1]
["У С Ь О Г О",null,null,null,null,1,62]
["у т.ч.:","понад 2 місяці з дня повідомлення особи про підозру",null,null,null,2,2]
["Закінчено у строк \n(з рядка 2)",null,"до 3 місяців",null,null,3]
[null,null,"від 3 до 6 місяців",null,null,4,2]
[null,null,"від 6 місяців до 1 року",null,null,5]
["Контрольний рядок",null,null,null,null,6,{"$f":"SUM(G36:G40)","v":66}]

{"sheet":"Таб 4-6","index":5,"n_rows":37,"n_cols":11,"rows_kept":37,"cut":false,"hidden":false,"merged":[[36,0,36,2],[5,7,5,8],[0,6,0,10],[5,6,10,6],[4,7,4,8],[7,7,7,8],[9,7,9,8],[20,0,20,2],[21,1,21,2],[18,0,19,0],[35,1,35,2],[11,6,11,8],[24,1,24,2],[2,6,2,8],[3,6,3,8],[32,0,32,2],[2,0,2,2],[3,0,10,1],[28,0,29,0],[25,0,25,2],[26,1,26,2],[16,0,16,2],[17,0,17,2],[13,0,13,2],[14,0,14,4],[11,4,12,4],[11,3,12,3],[34,0,34,2],[33,1,33,2],[27,0,27,2],[29,1,29,2],[11,0,12,2],[23,0,24,0],[23,1,23,2],[22,0,22,2],[28,1,28,2],[19,1,19,2],[18,1,18,2],[30,0,30,2],[31,1,31,2]]}
["Таблиця 4. Підстави закриття кримінальних проваджень (без повторно закритих)",null,null,null,null,null,"Таблиця 6. Зупинені кримінальні провадження (без повторно зупинених)"]
[null,null,null,"рядок",null,null,null,null,null,"рядок"]
["а",null,null,"б",1,null,"а",null,null,"б",1]
["У закритих досудових провадженнях рішення прийнято на підставі:",null,"п. 1 ст. 284 КПК  (за відсутністю події кримінального правопорушення)",1,1,null,"Залишок зупинених кримінальних проваджень на кінець звітного періоду",null,null,1,1]
[null,null,"п. 2 ст. 284 КПК  (за відсутністю складу кримінального правопорушення)",2,55,null,"у т.ч.:","зупинені вперше в поточному році",null,2]
[null,null,"п. 3 ст. 284 КПК (за невстановленням доказів винуватості особи)",3,null,null,"з них:","Зупинено кримінальних проваджень унаслідок захворювання підозрюваного (п.1 ст. 280 КПК)",null,3]
[null,null,"п. 4 ст. 284 КПК (законом скасована кримінальна відповідальність)",4,null,null,null,"у т.ч.:","зупинені вперше в поточному році",4]
[null,null,"п. 5 ст.284 КПК (у зв’язку зі смертю підозрюваного, обвинуваченого)",5,null,null,null,"Підозрюваний ухиляється від слідства (п. 2 ст. 280 КПК)",null,5,1]
[null,null,"п. 6 ст. 284 КПК (за наявністю вироку по тому самому обвинуваченню)",6,null,null,null,"у т.ч.:","зупинені вперше в поточному році",6]
[null,null,"п. 7 ст. 284 КПК (у разі відмови потерпілого від обвинувачення)",7,null,null,null,"За необхідності виконання процесуальних дій у межах міжнародного співробітництва (п.3 ст. 280 КПК)",null,7]
[null,null,"п. 8 ст. 284 КПК (у разі неотримання згоди держави, яка видала особу) ",8,null,null,null,"у т.ч.:","зупинені вперше в поточному році",8]
["Направлено до суду клопотань для звільнення підозрюваного, обвинуваченого від кримінальної відповідальності у зв’язку із закінченням строків давності (Дані рядка 9 в табл.1 не включаються)",null,null,9,null,null,"Контрольний рядок",null,null,9,{"$f":"SUM(K4:K11)","v":2}]
[]
["Контрольний рядок",null,null,10,{"$f":"SUM(E4:E12)","v":56}]
["Таблиця 5. Дані про виправданих осіб та осіб, стосовно яких кримінальне провадження закрито (без повторних) за реабілітуючими підставами"]
[null,null,null,"рядок"]
["а",null,null,"б",1]
["Кількість підозрюваних осіб, стосовно яких кримінальне провадження закрито прокурором на підставі п.п. 1-3 ч.1 ст. 284 КПК України",null,null,1]
["з них:","трималися під вартою",null,2]
[null,"перебували під домашнім арештом",null,3]
["Кількість обвинувачених та підозрюваних, стосовно яких провадження закрито за реабілітуючими підставами (за кримінальними справами, розслідуваними до 20.11.2012)",null,null,4]
["з них:","трималося під вартою",null,5]
["Кількість виправданих і осіб, стосовно яких провадження закриті судом за реабілітуючими підставами ",null,null,6]
["з них:","трималися під вартою",null,7]
[null,"перебували під домашнім арештом",null,8]
["Кількість виправданих і осіб, стосовно яких справи закриті судом за відсутністю події або складу злочину і за недоведеністю обвинувачення (за кримінальними справами, направленими до суду до 20.11.2012)",null,null,9]
["з них:","трималося під вартою",null,10]
["Кількість осіб, стосовно яких кримінальні провадження закриті судом у зв’язку з відмовою прокурора від підтримання державного обвинувачення",null,null,11]
["з них:","трималися під вартою",null,12]
[null,"перебували під домашнім арештом",null,13]
["Кількість осіб, стосовно яких кримінальні справи закриті судом у зв’язку з відмовою прокурора від підтримання державного обвинувачення (за кримінальними справами, направленими до суду до 20.11.2012)",null,null,14]
["з них:","трималися під вартою",null,15]
["Кількість осіб, яких притягнуто до кримінальної відповідальності, але у зв’язку із зміною законодавства (декриміналізацією) провадження стосовно них закриті на стадії розслідування за відсутністю складу злочину",null,null,16]
["з них:","трималися під вартою",null,17]
["Кількість осіб, стосовно яких провадження закриті судом у зв’язку із зміною законодавства (декриміналізацією) за відсутністю складу злочину",null,null,18]
["з них:","трималися під вартою",null,19]
["Контрольний рядок",null,null,20,{"$f":"SUM(E18:E36)","v":0}]

{"sheet":"Таб 7-10","index":6,"n_rows":36,"n_cols":19,"rows_kept":36,"cut":false,"hidden":false,"merged":[[8,10,9,18],[1,14,2,14],[26,0,26,2],[14,3,14,6],[28,10,28,18],[1,15,2,15],[1,13,2,13],[1,10,2,12],[19,5,22,5],[19,4,22,4],[10,10,10,16],[20,10,20,16],[15,12,15,16],[14,11,15,11],[17,12,17,16],[18,11,18,16],[30,12,30,14],[0,10,0,18],[3,10,3,12],[4,10,4,12],[5,10,6,10],[5,11,5,12],[6,11,6,12],[7,10,7,12],[11,10,11,16],[12,10,12,16],[13,11,13,16],[14,12,14,16],[16,11,16,16],[1,18,2,18],[1,17,2,17],[1,16,2,16],[34,0,34,2],[35,0,35,2],[27,0,31,0],[28,1,28,2],[33,0,33,2],[30,1,30,2],[31,1,31,2],[27,1,27,2],[32,0,32,2],[0,0,0,8],[18,3,22,3],[16,0,16,6],[2,0,2,6],[3,0,3,6],[4,0,4,6],[5,0,15,0],[11,1,14,2],[17,0,17,8],[18,0,22,2],[6,2,6,6],[9,1,9,6],[15,1,15,6],[18,4,18,7],[11,3,11,6],[19,6,22,6],[19,11,19,16],[19,7,22,7],[13,10,19,10],[13,3,13,6],[12,3,12,6],[22,15,23,16],[26,17,27,18],[24,10,25,14],[24,15,25,16],[22,10,23,14],[24,17,25,18],[26,10,27,14],[26,15,27,16],[22,17,23,18],[25,1,25,2],[5,1,5,6],[6,1,8,1],[7,2,7,6],[8,2,8,6],[10,1,10,6],[23,0,23,2],[24,0,24,2]]}
["Таблиця 7. Затримання осіб як підозрюваних, обрання запобіжного заходу",null,null,null,null,null,null,null,null,null,"Таблиця 9. Забезпечення відшкодування збитків за закінченими кримінальними провадженнями (з обвинувальними актами, клопотаннями до суду про звільнення від кримінальної відповідальності, постановами про закриття провадження на підставі п. 5 ст. 284 КПК України)"]
[null,null,null,null,null,null,null,"рядок",null,null,null,null,null,"рядок","Установлено збитків\nна суму\n(у тис. грн.)","Відшкодовано збитків\nна суму\n(у тис. грн.)","Накладено арешт на майно на суму\n(у тис. грн.)","У т.ч. вилучено грошей та цінностей (для забезпечення відшкодування збитків) на суму (у тис. грн.)","Сума, на яку пред’явлено позови\n( у тис. грн.)"]
["а",null,null,null,null,null,null,"б",1]
["Затримано осіб у порядку, передбаченому ст.ст. 207, 208 КПК України ",null,null,null,null,null,null,1,null,null,"а",null,null,"б",1,2,3,4,5]
["Усього звільнено осіб",null,null,null,null,null,null,2,null,null,"УСЬОГО",null,null,1,40,40]
["у т.ч.:","звільнено осіб безпосередньо слідчим (прокурором) без застосування запобіжного заходу у вигляді тримання під вартою",null,null,null,null,null,3,null,null,"з них:","інтересам держави та територіальних громад",null,2,40,40]
[null,"з них:","за непідтвердженням підозри у вчиненні злочину",null,null,null,null,4,null,null,null,"про земельні правовідносини",null,3]
[null,null,"у зв'язку із закінченням установленого законом строку затримання",null,null,null,null,5,null,null,"Контрольний рядок",null,null,4,{"$f":"SUM(O5:O7)","v":80},{"$f":"SUM(P5:P7)","v":80},{"$f":"SUM(Q5:Q7)","v":0},{"$f":"SUM(R5:R7)","v":0},{"$f":"SUM(S5:S7)","v":0}]
[null,null,"у зв’язку із внесенням  клопотань слідчими про обрання більш м’яких запобіжних заходів (застави, домашнього арешту тощо) ",null,null,null,null,6,null,null,"Таблиця 10. Повернення справ судом для проведення додаткового розслідування відповідно до пункту 12 Перехідних положень КПК України"]
[null,"у зв’язку з відмовою прокурора підтримати клопотання про застосування запобіжного заходу – тримання під вартою ",null,null,null,null,null,7]
[null,"через відмову суду в обранні запобіжного заходу у вигляді тримання під вартою",null,null,null,null,null,8,null,null,null,null,null,null,null,null,null,"рядок","Всього"]
[null,"з них:\nу зв’язку з обранням\nінших запобіжних\nзаходів",null,"домашній арешт",null,null,null,9,null,null,"а",null,null,null,null,null,null,"б",1]
[null,null,null,"застава",null,null,null,10,null,null,"Повернуто справ судом для проведення додаткового розслідування",null,null,null,null,null,null,1]
[null,null,null,"особиста порука",null,null,null,11,null,null,"з них: ","направлено до суду з обвинувальним актом",null,null,null,null,null,2]
[null,null,null,"особисте зобов’язання ",null,null,null,12,null,null,null,"у т. ч. ","з угодами про примирення",null,null,null,null,3]
[null,"у зв’язку із скасуванням апеляційним судом постанови суду про тримання під вартою",null,null,null,null,null,13,null,null,null,null,"з угодами про визнання винуватості",null,null,null,null,4]
["Контрольний рядок",null,null,null,null,null,null,14,{"$f":"SUM(I4:I16)","v":0},null,null,"закрито",null,null,null,null,null,5]
["Таблиця 8. Повернення судом кримінальних проваджень прокурору та результати їх розслідування ",null,null,null,null,null,null,null,null,null,null,"у т. ч. ","за п. п. 1-3 ст. 284 КПК України",null,null,null,null,6]
[null,null,null,"рядок","Повернуто проваджень, у тому числі:",null,null,null,null,null,null,"направлено до суду клопотань для звільнення від кримінальної відповідальності",null,null,null,null,null,7]
[null,null,null,null,"з обвину-вальним актом (п.3 ч. 3 ст. 314 КПК)","з клопотаннями про застосування примусових заходів медичного характеру (п.3 ч. 3 ст. 314 КПК)","з клопотаннями про звільнення особи від кримінальної відповідальності (п. 4 ст. 288 КПК)","проваджень на підставі п. 1 ч. 3 ст. 314,  п.2 ч.2 ст. 407 КПК",null,null,null,"направлено за підслідністю до інших правоохоронних органів",null,null,null,null,null,8]
[null,null,null,null,null,null,null,null,null,null,"Контрольний рядок",null,null,null,null,null,null,9,{"$f":"SUM(S13:S20)","v":0}]
[]
[null,null,null,null,null,null,null,null,null,null,"Прокурор області",null,null,null,null,"Комашко В. В.",null,"________________\n(підпис)"]
["а",null,null,"б",1,2,3,4]
["Усього надійшло кримінальних проваджень із судів",null,null,1,null,null,null,null,null,null,"Заступник прокурора області",null,null,null,null,"Івашко С. В.",null,"________________\n(підпис)"]
["з них:","направлено до суду в звітному періоді без проведення досудового розслідування",null,2]
["Перебувало кримінальних проваджень у слідчого у звітному періоді",null,null,3,null,null,null,null,null,null,"Виконавець",null,null,null,null,"Шкільнюк О. М.",null,"________________\n(підпис)"]
["з них (з рядка 3):","направлено кримінальних проваджень до суду з обвинувальним актом",null,4]
[null,"закрито",null,5,null,null,null,null,null,null,"Телефон: __________________ факс: ____________________ електронна пошта: ___________________________"]
[null,"у т.ч.:","за п.п. 1-3 ст. 284 КПК України",6,null,null,null,null,null,null,"Звіт складено в _____ примірниках"]
[null,"направлено до суду клопотань для звільнення від кримінальної відповідальності",null,7,null,null,null,null,null,null,"Прим. №1"]
[null,"направлено до суду клопотань про застосування заходів медичного характеру",null,8,null,null,null,null,null,null,"Прим. №2",null,null,null,null,null,"Вих. № ___   “___” ______________200__р."]
["3упинено проваджень",null,null,9]
["Направлено проваджень за підслідністю",null,null,10]
["Залишок незакінчених кримінальних проваджень",null,null,11]
["Контрольний рядок",null,null,12,{"$f":"SUM(E25:E35)","v":0},{"$f":"SUM(F25:F35)","v":0},{"$f":"SUM(G25:G35)","v":0},{"$f":"SUM(H25:H35)","v":0}]

{"sheet":"Додаток","index":7,"n_rows":23,"n_cols":9,"rows_kept":23,"cut":false,"hidden":false,"merged":[[1,0,1,8],[2,0,3,3],[2,4,3,4],[2,5,3,5],[2,6,2,8],[6,1,6,3],[4,0,4,3],[5,0,5,3],[6,0,7,0],[7,1,7,3],[8,0,11,0],[8,1,8,3],[9,1,9,3],[10,1,11,2],[18,0,18,3],[12,0,12,3],[13,0,14,0],[13,1,14,2],[15,0,17,0],[16,2,17,2],[15,1,15,3],[16,1,17,1],[22,7,23,8],[22,0,23,2],[22,4,23,6],[20,4,21,6],[20,7,21,8],[19,0,21,2]]}
[null,null,null,null,null,null,null,null,"Додаток ________"]
["Стан відшкодування збитків за закінченими кримінальними провадженнями"]
["Показник",null,null,null,"рядок","Усього","з них:"]
[null,null,null,null,null,null,"Фізичним особам","Державним інтересам","Інтересам територіальних громад"]
["а",null,null,null,"б",1,2,3,4]
["Усього забезпечено відшкодування збитків\n(рядок 1 графи 2,4 таблиці 9) (тис.грн.)",null,null,null,1,40,null,40]
["з них на суму \n(тис. грн.)","вилучених предметів злочинного посягання",null,null,2]
[null,"бюджетам усіх рівнів",null,null,3,40,"х",40]
["з них з рядка 1 повернуто (відшкодовано)","коштів",null,null,4]
[null,"майна та цінностей",null,null,5]
[null,"землі",null,"га",6]
[null,null,null,"сума",7]
["Залишок невідшкодованих збитків під час досудового розслідування (тис.грн.) \n(гр.1 - гр.2 - гр.4 - гр. 5)",null,null,null,8]
["у т.ч.","у кримінальних провадженнях про земельні правовідносини",null,"га",9]
[null,null,null,"сума",10]
["з них:","Відшкодовано за прокурорського реагування (тис.грн.)",null,null,11]
[null,"у т.ч.","пов’язаних із\nземельними\nправовідносинами ","га",12]
[null,null,null,"сума",13]
["Контрольний рядок",null,null,null,14,{"$f":"SUM(F6:F18)","v":80},{"$f":"SUM(G6:G7,G9:G18)","v":0},{"$f":"SUM(H6:H18)","v":80},{"$f":"SUM(I6:I18)","v":0}]
[{"$f":"'Таб 7-10'!K23","v":"Прокурор області"}]
[null,null,null,null,"Комашко В. В.",null,null,"________________\n(підпис)"]
[]
[{"$f":"'Таб 7-10'!K25","v":"Заступник прокурора області"},null,null,null,"Івашко С. В.",null,null,"________________\n(підпис)"]